fUST/lending_fUST_20241229
["ID","MTS","AMOUNT","RATE_DAILY","PERIOD"]
[346941539,1735408240959,-500.0,0.00015543,2]
[346941540,1735408240968,-510.93462772,0.00015543,2]
[346941541,1735408240977,-506.4924741,0.00015543,2]
[346941542,1735408240986,-500.0,0.00015543,2]
[346941543,1735408240995,-500.0,0.00015543,2]
[346941544,1735408241004,-500.0,0.00015543,2]
[346941545,1735408241013,-349.70153868,0.00015543,2]
[346941546,1735408241022,-500.0,0.00015543,2]
[346941547,1735408241031,-516.5999289,0.00015543,2]
[346941548,1735408241040,-248.6047044,0.00015543,2]
[346941549,1735408241050,-499.68147212,0.00015543,2]
[346941550,1735408241059,-563.2997311,0.00015543,2]
[346941551,1735408241069,-500.0,0.00015543,2]
[346941552,1735408241078,-500.0,0.00015543,2]
[346941553,1735408241087,-500.0,0.00015543,2]
[346941554,1735408241096,-500.0,0.00015543,2]
[346941555,1735408241105,-500.0,0.00015543,2]
[346941556,1735408241114,-500.0,0.00015543,2]
[346941557,1735408241123,-501.49118778,0.00015543,2]
[346941558,1735408241132,-500.0,0.00015543,2]
[346941559,1735408241141,-500.0,0.00015543,2]
[346941560,1735408241150,-500.0,0.00015543,2]
[346941561,1735408241159,-500.0,0.00015543,2]
[346941562,1735408241168,-500.0,0.00015543,2]
[346941563,1735408241177,-500.0,0.00015543,2]
[346941564,1735408241186,-500.0,0.00015543,2]
[346941565,1735408241195,-500.0,0.00015543,2]
[346941566,1735408241203,-500.0,0.00015543,2]
[346941567,1735408241212,-1016.53174185,0.00015543,2]
[346941568,1735408241223,-500.0,0.00015543,2]
[346941569,1735408241235,-522.63493138,0.00015543,2]
[346941570,1735408241246,-500.0,0.00015543,2]
[346941571,1735408241255,-500.0,0.00015543,2]
[346941572,1735408241264,-217.17153583,0.00015543,2]
[346941573,1735408241273,-500.0,0.00015543,2]
[346941574,1735408241282,-500.0,0.00015543,2]
[346941575,1735408241292,-500.0,0.00015543,2]
[346941576,1735408241301,-506.33690436,0.00015543,2]
[346941577,1735408241310,-501.25543443,0.00015543,2]
[346941578,1735408241319,-500.0,0.00015543,2]
[346941579,1735408241328,-500.0,0.00015544,2]
[346941580,1735408241337,-500.0,0.00015544,2]
[346941581,1735408241346,-500.0,0.00015544,2]
[346941582,1735408241355,-500.0,0.00015544,2]
[346941583,1735408241364,-500.0,0.00015544,2]
[346941584,1735408241373,-500.0,0.00015544,2]
[346941585,1735408241382,-500.0,0.00015544,2]
[346941586,1735408241391,-500.63662953,0.00015545,2]
[346941587,1735408241401,-500.0,0.00015545,2]
[346941588,1735408241411,-506.86880565,0.00015545,2]
[346941589,1735408241419,-502.44379707,0.00015545,2]
[346941590,1735408241428,-504.08015614,0.00015545,2]
[346941591,1735408241438,-500.0,0.00015545,2]
[346941592,1735408241447,-320.08754664,0.00015545,2]
[346941593,1735408241456,-500.0,0.00015545,2]
[346941594,1735408241466,-500.0,0.00015545,2]
[346941595,1735408241475,-500.0,0.00015545,2]
[346941596,1735408241483,-500.0,0.00015545,2]
[346941597,1735408241492,-500.0,0.00015545,2]
[346941598,1735408241502,-500.0,0.00015545,2]
[346941599,1735408241510,-500.0,0.00015545,2]
[346941600,1735408241519,-500.0,0.00015545,2]
[346941601,1735408241528,-500.0,0.00015546,2]
[346941602,1735408241538,-500.0,0.00015815,2]
[346941603,1735408241547,-500.0,0.00015815,2]
[346941604,1735408241556,-500.0,0.00015815,2]
[346941605,1735408241566,-500.0,0.00015815,2]
[346941606,1735408241576,-500.0,0.00015815,2]
[346941607,1735408241585,-500.0,0.00015815,2]
[346941608,1735408241594,-218.23,0.00015815,2]
[346941609,1735408241603,-500.0,0.00015815,2]
[346941610,1735408241612,-464.23,0.00015815,2]
[346941611,1735408241622,-395.35,0.00015815,2]
[346941612,1735408241631,-500.0,0.00015815,2]
[346941613,1735408241640,-571.88739503,0.00015816,2]
[346941614,1735408241649,-500.0,0.00015816,2]
[346941615,1735408241659,-500.0,0.00015816,2]
[346941616,1735408241668,-500.0,0.00015816,2]
[346941617,1735408241677,-500.0,0.00015816,2]
[346941618,1735408241686,-500.0,0.00015816,2]
[346941619,1735408241696,-500.0,0.00015816,2]
[346941620,1735408241706,-500.0,0.00015816,2]
[346941621,1735408241715,-500.0,0.00015816,2]
[346941622,1735408241725,-500.0,0.00015816,2]
[346941623,1735408241735,-631.82,0.00015816,2]
[346941624,1735408241745,-472.54,0.00015816,2]
[346941625,1735408241755,-500.0,0.00015816,2]
[346941626,1735408241764,-500.0,0.00015816,2]
[346941627,1735408241773,-500.0,0.00015816,2]
[346941628,1735408241786,-500.0,0.00015816,2]
[346941629,1735408241795,-500.0,0.00015816,2]
[346941630,1735408241804,-500.0,0.00015816,2]
[346941631,1735408241814,-500.0,0.00015816,2]
[346941632,1735408241823,-500.0,0.00015816,2]
[346941633,1735408241832,-546.71,0.00015816,2]
[346941634,1735408241843,-513.81,0.00015816,2]
[346941635,1735408241855,-500.0,0.00015816,2]
[346941636,1735408241864,-500.0,0.00015816,2]
[346941637,1735408241874,-500.0,0.00015816,2]
[346941638,1735408241884,-500.0,0.00015816,2]
[346941639,1735408241895,-500.0,0.00015816,2]
[346941640,1735408241904,-500.0,0.00015816,2]
[346941641,1735408241914,-349.29,0.00015816,2]
[346941642,1735408241924,-500.0,0.00015816,2]
[346941643,1735408241933,-500.0,0.00015816,2]
[346941644,1735408241942,-500.0,0.00015816,2]
[346941645,1735408241952,-500.0,0.00015816,2]
[346941646,1735408241961,-500.0,0.00015816,2]
[346941647,1735408241971,-500.0,0.00015816,2]
[346941648,1735408241980,-500.0,0.00015816,2]
[346941649,1735408241989,-317.35036403,0.00015816,2]
[346941650,1735408241998,-500.0,0.00015816,2]
[346941651,1735408242007,-500.0,0.00015816,2]
[346941652,1735408242016,-500.0,0.00015816,2]
[346941653,1735408242025,-404.77,0.00015816,2]
[346941654,1735408242034,-213.46426337,0.00015816,2]
[346941655,1735408242044,-500.0,0.00015816,2]
[346941656,1735408242055,-570.76,0.00015816,2]
[346941657,1735408242064,-500.0,0.00015816,2]
[346941658,1735408242073,-500.0,0.00015816,2]
[346941659,1735408242083,-500.0,0.00015816,2]
[346941660,1735408242092,-500.0,0.00015816,2]
[346941661,1735408242101,-500.0,0.00015816,2]
[346941662,1735408242110,-500.0,0.00015816,2]
[346941663,1735408242120,-500.0,0.00015816,2]
[346941664,1735408242129,-500.0,0.00015816,2]
[346941665,1735408242138,-500.0,0.00015816,2]
[346941666,1735408242147,-500.0,0.00015816,2]
[346941667,1735408242157,-500.0,0.00015816,2]
[346941668,1735408242166,-500.0,0.00015816,2]
[346941669,1735408242175,-500.0,0.00015816,2]
[346941670,1735408242184,-500.0,0.00015816,2]
[346941671,1735408242193,-3327.98,0.00015816,2]
[346941672,1735408242202,-500.0,0.00015816,2]
[346941673,1735408242211,-500.0,0.00015816,2]
[346941674,1735408242220,-500.0,0.00015816,2]
[346941675,1735408242229,-500.0,0.00015816,2]
[346941676,1735408242238,-500.0,0.00015816,2]
[346941677,1735408242248,-500.0,0.00015816,2]
[346941678,1735408242257,-500.0,0.00015816,2]
[346941679,1735408242266,-385.11104927,0.00015816,2]
[346941680,1735408242275,-500.0,0.00015816,2]
[346941681,1735408242284,-500.0,0.00015816,2]
[346941682,1735408242294,-500.0,0.00015816,2]
[346941683,1735408242304,-500.0,0.00015816,2]
[346941684,1735408242313,-500.0,0.00015816,2]
[346941685,1735408242323,-500.0,0.00015817,2]
[346941686,1735408242332,-500.0,0.00015817,2]
[346941687,1735408242341,-500.0,0.00015817,2]
[346941688,1735408242350,-500.0,0.00015817,2]
[346941689,1735408242360,-500.0,0.00015817,2]
[346941690,1735408242440,-500.0,0.00015817,2]
[346941691,1735408242449,-500.0,0.00015817,2]
[346941692,1735408242460,-513.40695836,0.00015817,2]
[346941693,1735408242471,-500.0,0.00015817,2]
[346941694,1735408242482,-500.0,0.00015817,2]
[346941695,1735408242492,-500.0,0.00015817,2]
[346941696,1735408242502,-502.62096378,0.00015817,2]
[346941697,1735408242512,-500.0,0.00015817,2]
[346941698,1735408242521,-500.0,0.00015817,2]
[346941699,1735408242531,-500.0,0.00015817,2]
[346941700,1735408242543,-525.4,0.00015817,2]
[346941701,1735408242553,-500.0,0.00015817,2]
[346941702,1735408242562,-500.0,0.00015817,2]
[346941703,1735408242571,-500.0,0.00015817,2]
[346941704,1735408242582,-500.0,0.00015817,2]
[346941705,1735408242593,-500.0,0.00015817,2]
[346941706,1735408242604,-500.0,0.00015817,2]
[346941707,1735408242614,-500.0,0.00015817,2]
[346941708,1735408242623,-450.69647483,0.00015817,2]
[346941709,1735408242632,-500.0,0.00015817,2]
[346941710,1735408242641,-500.0,0.00015817,2]
[346941711,1735408242650,-500.0,0.00015817,2]
[346941712,1735408242659,-500.0,0.00015817,2]
[346941713,1735408242669,-500.0,0.00015817,2]
[346941714,1735408242679,-500.0,0.00015817,2]
[346941715,1735408242688,-500.0,0.00015817,2]
[346941716,1735408242697,-500.0,0.00015817,2]
[346941717,1735408242706,-500.0,0.00015817,2]
[346941718,1735408242715,-500.0,0.00015817,2]
[346941719,1735408242725,-501.05,0.00015817,2]
[346941720,1735408242734,-505.04,0.00015817,2]
[346941721,1735408242743,-500.0,0.00015817,2]
[346941722,1735408242752,-502.35905092,0.00015817,2]
[346941723,1735408242761,-500.0,0.00015817,2]
[346941724,1735408242771,-500.0,0.00015817,2]
[346941725,1735408242785,-500.0,0.00015817,2]
[346941726,1735408242794,-500.0,0.00015817,2]
[346941727,1735408242804,-483.88,0.00015817,2]
[346941728,1735408242814,-500.0,0.00015817,2]
[346941729,1735408242823,-500.0,0.00015817,2]
[346941730,1735408242832,-500.0,0.00015817,2]
[346941731,1735408242842,-500.0,0.00015817,2]
[346941732,1735408242851,-523.58579061,0.00015817,2]
[346941733,1735408242861,-500.0,0.00015817,2]
[346941734,1735408242871,-151.0,0.00015817,2]
[346941735,1735408242881,-500.0,0.00015817,2]
[346941736,1735408242890,-500.0,0.00015817,2]
[346941737,1735408242899,-151.0,0.00015817,2]
[346941738,1735408242909,-187.778786,0.00015817,2]
[346941739,1735408242918,-500.0,0.00015817,2]
[346941740,1735408242927,-151.0,0.00015817,2]
[346941741,1735408242936,-170.695746,0.00015817,2]
[346941742,1735408242945,-170.695746,0.00015817,2]
[346941743,1735408242955,-151.0,0.00015817,2]
[346941744,1735408242964,-151.0,0.00015817,2]
[346941745,1735408242974,-151.0,0.00015817,2]
[346941746,1735408242983,-151.0,0.00015817,2]
[346941747,1735408242992,-151.0,0.00015817,2]
[346941748,1735408243001,-151.0,0.00015817,2]
[346941749,1735408243011,-242.76118,0.00015817,2]
[346941750,1735408243020,-216.585759,0.00015817,2]
[346941751,1735408243029,-216.585759,0.00015817,2]
[346941752,1735408243038,-151.0,0.00015817,2]
[346941753,1735408243047,-151.0,0.00015817,2]
[346941754,1735408243057,-330.073752,0.00015817,2]
[346941755,1735408243066,-330.073752,0.00015817,2]
[346941756,1735408243076,-151.0,0.00015817,2]
[346941757,1735408243085,-277.803125,0.00015817,2]
[346941758,1735408243094,-151.0,0.00015817,2]
[346941759,1735408243103,-151.0,0.00015817,2]
[346941760,1735408243112,-277.803125,0.00015817,2]
[346941762,1735408243121,-151.0,0.00015817,2]
[346941763,1735408243130,-151.0,0.00015817,2]
[346941764,1735408243139,-151.0,0.00015817,2]
[346941765,1735408243148,-290.258966,0.00015817,2]
[346941766,1735408243157,-151.0,0.00015817,2]
[346941767,1735408243166,-151.0,0.00015817,2]
[346941771,1735408243176,-151.0,0.00015817,2]
[346941774,1735408243185,-151.0,0.00015817,2]
[346941777,1735408243194,-151.0,0.00015817,2]
[346941780,1735408243203,-151.0,0.00015817,2]
[346941783,1735408243212,-222.109388,0.00015817,2]
[346941786,1735408243221,-151.0,0.00015817,2]
[346941788,1735408243230,-151.0,0.00015817,2]
[346941789,1735408243239,-167.95559,0.00015817,2]
[346941791,1735408243248,-500.0,0.00015818,2]
[346941793,1735408243257,-500.0,0.00015818,2]
[346941795,1735408243266,-500.0,0.00015818,2]
[346941797,1735408243277,-500.0,0.00015818,2]
[346941798,1735408243286,-500.0,0.00015819,2]
[346941800,1735408243296,-500.0,0.00015819,2]
[346941801,1735408243307,-500.0,0.00015819,2]
[346941802,1735408243316,-500.0,0.00015819,2]
[346941803,1735408243325,-211.79,0.00015819,2]
[346941804,1735408243334,-500.0,0.0001582,2]
[346941805,1735408243343,-5666.97874097,0.00015888,2]
[346941806,1735408243352,-500.0,0.00016089,2]
[346941807,1735408243360,-577.8097059,0.00016089,2]
[346941808,1735408243370,-500.0,0.00016089,2]
[346941810,1735408243379,-181.72,0.00016089,2]
[346941812,1735408243388,-1572.07303191,0.0001609,2]
[346941814,1735408243397,-37377.1083669,0.0001609,2]
[346941815,1735408243407,-500.0,0.0001609,2]
[346941817,1735408243416,-500.0,0.0001609,2]
[346941819,1735408243425,-500.0,0.0001609,2]
[346941821,1735408243434,-500.0,0.0001609,2]
[346941822,1735408243443,-308.96615095,0.0001609,2]
[346941824,1735408243453,-500.0,0.0001609,2]
[346941826,1735408243463,-500.0,0.0001609,2]
[346941828,1735408243472,-500.0,0.0001609,2]
[346941830,1735408243482,-500.0,0.0001609,2]
[346941831,1735408243491,-196.37,0.0001609,2]
[346941833,1735408243500,-500.34,0.0001609,2]
[346941834,1735408243509,-500.0,0.0001609,2]
[346941836,1735408243518,-500.0,0.0001609,2]
[346941838,1735408243527,-500.0,0.0001609,2]
[346941839,1735408243536,-500.0,0.0001609,2]
[346941840,1735408243547,-315.68,0.0001609,2]
[346941841,1735408243558,-500.0,0.0001609,2]
[346941842,1735408243567,-195.42,0.0001609,2]
[346941843,1735408243576,-500.0,0.0001609,2]
[346941844,1735408243586,-151.0,0.0001609,2]
[346941845,1735408243595,-277.803125,0.0001609,2]
[346941846,1735408243604,-400.36,0.0001609,2]
[346941848,1735408243613,-151.0,0.0001609,2]
[346941850,1735408243622,-500.0,0.0001609,2]
[346941852,1735408243632,-277.803125,0.0001609,2]
[346941854,1735408243641,-500.0,0.0001609,2]
[346941855,1735408243650,-620.46,0.0001609,2]
[346941856,1735408243659,-500.0,0.0001609,2]
[346941857,1735408243668,-151.0,0.0001609,2]
[346941858,1735408243678,-500.0,0.0001609,2]
[346941859,1735408243687,-151.0,0.0001609,2]
[346941860,1735408243696,-500.0,0.0001609,2]
[346941861,1735408243705,-3327.98,0.0001609,2]
[346941862,1735408243714,-151.0,0.0001609,2]
[346941863,1735408243723,-151.0,0.0001609,2]
[346941864,1735408243732,-500.0,0.0001609,2]
[346941865,1735408243741,-207.36,0.0001609,2]
[346941866,1735408243750,-192.018256,0.0001609,2]
[346941867,1735408243759,-500.0,0.0001609,2]
[346941868,1735408243768,-151.0,0.0001609,2]
[346941869,1735408243778,-500.0,0.0001609,2]
[346941870,1735408243788,-151.0,0.0001609,2]
[346941871,1735408243797,-500.0,0.0001609,2]
[346941872,1735408243808,-151.0,0.0001609,2]
[346941873,1735408243818,-151.0,0.0001609,2]
[346941874,1735408243827,-500.0,0.00016091,2]
[346941875,1735408243836,-500.0,0.00016091,2]
[346941876,1735408243845,-500.0,0.00016091,2]
[346941877,1735408243854,-506.51779273,0.00016091,2]
[346941878,1735408243863,-500.0,0.00016091,2]
[346941879,1735408243872,-475.61301078,0.00016091,2]
[346941880,1735408243881,-500.0,0.00016091,2]
[346941881,1735408243890,-209.56262053,0.00016091,2]
[346941882,1735408243899,-500.0,0.00016091,2]
[346941883,1735408243908,-500.0,0.00016091,2]
[346941884,1735408243917,-500.0,0.00016091,2]
[346941885,1735408243926,-500.0,0.00016091,2]
[346941886,1735408243935,-500.0,0.00016091,2]
[346941887,1735408243945,-500.0,0.00016091,2]
[346941888,1735408243954,-500.0,0.00016091,2]
[346941889,1735408243963,-151.0,0.00016091,2]
[346941890,1735408243973,-500.0,0.00016091,2]
[346941891,1735408243982,-500.0,0.00016091,2]
[346941892,1735408243992,-151.0,0.00016091,2]
[346941893,1735408244001,-500.0,0.00016091,2]
[346941894,1735408244011,-500.0,0.00016091,2]
[346941895,1735408244020,-500.0,0.00016091,2]
[346941896,1735408244033,-500.0,0.00016091,2]
[346941897,1735408244042,-500.0,0.00016091,2]
[346941898,1735408244052,-500.0,0.00016091,2]
[346941899,1735408244064,-151.0,0.00016091,2]
[346941900,1735408244074,-609.87918576,0.00016091,2]
[346941901,1735408244084,-500.0,0.00016091,2]
[346941902,1735408244094,-598.88297308,0.00016091,2]
[346941903,1735408244105,-151.0,0.00016091,2]
[346941904,1735408244114,-216.585759,0.00016091,2]
[346941905,1735408244124,-216.585759,0.00016091,2]
[346941906,1735408244133,-152.457352,0.00016091,2]
[346941907,1735408244143,-151.0,0.00016091,2]
[346941908,1735408244152,-330.073752,0.00016091,2]
[346941909,1735408244162,-330.073752,0.00016091,2]
[346941910,1735408244171,-151.0,0.00016091,2]
[346941911,1735408244180,-284.168518,0.00016091,2]
[346941912,1735408244189,-151.0,0.00016092,2]
[346941913,1735408244198,-151.0,0.00016092,2]
[346941914,1735408244208,-151.0,0.00016092,2]
[346941915,1735408244217,-170.695746,0.00016092,2]
[346941916,1735408244226,-170.695746,0.00016092,2]
[346941917,1735408244236,-151.0,0.00016092,2]
[346941918,1735408244246,-500.0,0.00016092,2]
[346941919,1735408244255,-500.0,0.00016092,2]
[346941920,1735408244264,-500.0,0.00016092,2]
[346941921,1735408244274,-386.86413968,0.00016092,2]
[346941922,1735408244284,-219.28873151,0.00016093,2]
[346941923,1735408244294,-152.967861,0.00016093,2]
[346941924,1735408244303,-151.0,0.00016093,2]
[346941925,1735408244314,-154.020492,0.00016093,2]
[346941926,1735408244323,-516.59,0.00016093,2]
[346941927,1735408244332,-500.0,0.00016094,2]
[346941928,1735408244342,-500.0,0.00016363,2]
[346941929,1735408244351,-500.0,0.00016363,2]
[346941930,1735408244361,-500.0,0.00016364,2]
[346941931,1735408244370,-474.9,0.00016364,2]
[346941932,1735408244380,-500.0,0.00016364,2]
[346941933,1735408244455,-500.0,0.00016364,2]
[346941934,1735408244472,-3327.98,0.00016364,2]
[346941935,1735408244481,-500.0,0.00016364,2]
[346941936,1735408244491,-500.0,0.00016366,2]
[346941937,1735408244500,-384.18,0.00016366,2]
[346941938,1735408244510,-500.0,0.00016368,2]
[346941939,1735408244519,-500.0,0.00016438,2]
[346941940,1735408244528,-151.0,0.00016438,2]
[346941941,1735408244537,-169.57109915,0.00016438,2]
[346941942,1735408244547,-500.0,0.00016438,2]
[346941943,1735408244557,-299.82177614,0.00016438,2]
[346941944,1735408244566,-500.0,0.00016438,2]
[346941945,1735408244576,-500.0,0.00016438,2]
[346941946,1735408244585,-500.0,0.00016438,2]
[346941947,1735408244595,-500.0,0.00016438,2]
[346941948,1735408244605,-500.0,0.00016438,2]
[346941949,1735408244614,-500.0,0.00016438,2]
[346941950,1735408244624,-500.0,0.00016438,2]
[346941951,1735408244633,-226.092196,0.00016438,2]
[346941952,1735408244643,-151.0,0.00016438,2]
[346941953,1735408244652,-151.0,0.00016438,2]
[346941954,1735408244661,-170.695746,0.00016438,2]
[346941955,1735408244671,-170.695746,0.00016438,2]
[346941956,1735408244681,-151.0,0.00016438,2]
[346941957,1735408244690,-200.0,0.00016438,2]
[346941958,1735408244700,-200.0,0.00016438,2]
[346941959,1735408244709,-151.0,0.00016438,2]
[346941960,1735408244719,-500.0,0.00016438,2]
[346941961,1735408244728,-500.0,0.00016438,2]
[346941962,1735408244737,-277.803125,0.00016438,2]
[346941963,1735408244747,-500.0,0.00016438,2]
[346941964,1735408244756,-500.0,0.00016438,2]
[346941965,1735408244766,-151.0,0.00016438,2]
[346941966,1735408244777,-277.803125,0.00016438,2]
[346941967,1735408244789,-151.0,0.00016438,2]
[346941968,1735408244798,-151.0,0.00016438,2]
[346941969,1735408244809,-151.0,0.00016438,2]
[346941970,1735408244818,-151.0,0.00016438,2]
[346941971,1735408244828,-151.0,0.00016438,2]
[346941972,1735408244837,-151.0,0.00016438,2]
[346941973,1735408244847,-151.0,0.00016438,2]
[346941974,1735408244857,-151.0,0.00016438,2]
[346941975,1735408244868,-224.58,0.00016637,2]
[346941976,1735408244877,-500.0,0.00016637,2]
[346941977,1735408244887,-500.0,0.00016638,2]
[346941978,1735408244896,-151.0,0.00016638,2]
[346941979,1735408244905,-216.585759,0.00016638,2]
[346941980,1735408244914,-216.585759,0.00016638,2]
[346941981,1735408244924,-151.0,0.00016638,2]
[346941982,1735408244933,-330.073752,0.00016638,2]
[346941983,1735408244942,-330.073752,0.00016638,2]
[346941984,1735408244951,-500.0,0.00016638,2]
[346941985,1735408244961,-500.0,0.00016638,2]
[346941986,1735408244971,-3327.98,0.00016638,2]
[346941987,1735408244980,-151.0,0.00016638,2]
[346941988,1735408244990,-228.43,0.00016638,2]
[346941989,1735408244999,-151.0,0.0001664,2]
[346941990,1735408245008,-151.0,0.0001664,2]
[346941991,1735408245018,-500.0,0.0001664,2]
[346941992,1735408245027,-500.0,0.00016642,2]
[346941993,1735408245037,-170.82911289,0.00016683,2]
[346941994,1735408245046,-170.519,0.00016813,2]
[346941995,1735408245055,-500.0,0.00016911,2]
[346941996,1735408245065,-481.1620594,0.00016912,2]
[346941997,1735408245144,-18.8379406,0.00016912,2]
[346941998,1735408245154,-500.0,0.00016912,2]
[346941999,1735408245163,-273.05,0.00016912,2]
[346942000,1735408245173,-3327.98,0.00016912,2]
[346942001,1735408245182,-500.0,0.00016914,2]
[346942002,1735408245191,-500.0,0.00016916,2]
[346942003,1735408245201,-177.59665441,0.00017097,2]
[346942004,1735408245210,-500.0,0.00017185,2]
[346942005,1735408245219,-500.0,0.00017186,2]
[346942006,1735408245228,-500.0,0.00017186,2]
[346942007,1735408245238,-3327.98,0.00017186,2]
[346942008,1735408245247,-151.0,0.00017187,2]
[346942009,1735408245256,-500.0,0.00017188,2]
[346942010,1735408245266,-500.0,0.0001719,2]
[346942011,1735408245275,-500.0,0.00017459,2]
[346942012,1735408245284,-500.0,0.0001746,2]
[346942013,1735408245294,-500.0,0.0001746,2]
[346942014,1735408245308,-2854.10453687,0.0001746,2]
[346942015,1735408245324,-473.87546313,0.0001746,2]
[346942016,1735408245337,-151.0,0.00017461,2]
[346942017,1735408245351,-500.0,0.00017462,2]
[346942018,1735408245361,-500.0,0.00017464,2]
[346942019,1735408245374,-151.0,0.00017465,2]
[346942020,1735408245387,-500.0,0.00017733,2]
[346942021,1735408245399,-500.0,0.00017734,2]
[346942022,1735408245411,-500.0,0.00017734,2]
[346942023,1735408245424,-3327.98,0.00017734,2]
[346942024,1735408245437,-500.0,0.00017736,2]
[346942025,1735408245449,-500.0,0.00017738,2]
[346942026,1735408245461,-500.0,0.00017807,2]
[346942027,1735408245473,-500.0,0.00017808,4]
[346942028,1735408245487,-170.82911289,0.00017923,2]
[346942029,1735408245499,-577.57,0.00018007,2]
[346942030,1735408245511,-500.0,0.00018008,2]
[346942031,1735408245522,-640.89,0.00018008,2]
[346942032,1735408245534,-3327.98,0.00018008,2]
[346942033,1735408245545,-151.0,0.00018009,2]
[346942034,1735408245559,-170.695746,0.00018009,2]
[346942035,1735408245572,-170.695746,0.00018009,2]
[346942036,1735408245584,-291.806989,0.00018009,2]
[346942037,1735408245595,-500.0,0.0001801,2]
[346942038,1735408245605,-500.0,0.00018012,2]
[346942039,1735408245616,-522.6,0.00018282,2]
[346942040,1735408245627,-151.0,0.00018282,2]
[346942041,1735408245639,-277.803125,0.00018282,2]
[346942042,1735408245652,-151.0,0.00018282,2]
[346942043,1735408245664,-277.803125,0.00018282,2]
[346942044,1735408245676,-151.0,0.00018282,2]
[346942045,1735408245689,-151.0,0.00018282,2]
[346942046,1735408245702,-3327.98,0.00018282,2]
[346942047,1735408245715,-151.0,0.00018282,2]
[346942048,1735408245729,-151.0,0.00018282,2]
[346942049,1735408245743,-295.688232,0.00018282,2]
[346942050,1735408245756,-151.0,0.00018282,2]
[346942051,1735408245767,-151.0,0.00018282,2]
[346942052,1735408245780,-151.0,0.00018282,2]
[346942053,1735408245791,-500.0,0.00018284,2]
[346942054,1735408245802,-500.0,0.00018286,2]
[346942055,1735408245817,-3327.98,0.00018556,2]
[346942056,1735408245833,-427.92721885,0.00018558,2]
[346942057,1735408245845,-151.610156,0.00018559,2]
[346942058,1735408245859,-151.0,0.00018559,2]
[346942059,1735408245869,-151.0,0.00018559,2]
[346942060,1735408245880,-500.0,0.0001856,2]
[346942061,1735408245892,-177.59665441,0.0001875,2]
[346942062,1735408245903,-2851.44593617,0.00018767,2]
[346942063,1735408245931,-452.42512796,0.00018767,2]
[346942065,1735408245942,-4078.85416564,0.00018767,2]
[346942066,1735408245952,-151.0,0.00018767,2]
[346942067,1735408245964,-151.0,0.00018767,2]
[346942068,1735408245975,-216.585759,0.00018767,2]
[346942069,1735408245986,-216.585759,0.00018767,2]
[346942070,1735408245996,-122.82477356,0.00018767,2]
[346942071,1735408246010,-28.17522644,0.00018767,2]
[346942072,1735408246021,-330.073752,0.00018767,2]
[346942073,1735408246032,-330.073752,0.00018767,2]
[346942074,1735408246043,-151.0,0.00018767,2]
[346942076,1735408246055,-41.72726956,0.0001883,2]
[346942077,1735408246069,-1606.81903467,0.0001883,2]